[Event "Swedish U16 Team Championship 2019 - Final"]
[Site "Molnlycke Kulturhus, Biblioteksgatan 2, Molnlycke, Sweden"]
[Date "2019.08.17"]
[Round "4.4"]
[White "Wikman, Viktor 2006"]
[Black "Lindholm, Marcus"]
[Result "1-0"]
[TimeControl "90 minutes + 30 seconds per move from move one."]
[WhiteElo "1662"]
[BlackElo "1412"]

1. e4 {[%clk 01:30:06]} {[%emt 00:00:52]} e5 {[%clk 01:30:48]} {[%emt
00:00:12]} 2. Nf3 {[%clk 01:30:06]} {[%emt 00:00:31]} Nc6 {[%clk 01:31:02]}
{[%emt 00:00:16]} 3. Bc4 {[%clk 01:30:21]} {[%emt 00:00:15]} Nf6 {[%clk
01:30:46]} {[%emt 00:00:45]} 4. d3 {[%clk 01:27:55]} {[%emt 00:02:56]} h6
{[%clk 01:30:18]} {[%emt 00:00:59]} 5. O-O {[%clk 01:27:55]} {[%emt 00:00:30]}
Bc5 {[%clk 01:30:28]} {[%emt 00:00:20]} 6. c3 {[%clk 01:27:32]} {[%emt
00:00:54]} O-O {[%clk 01:27:45]} {[%emt 00:03:12]} 7. d4 {[%clk 01:25:52]}
{[%emt 00:02:10]} exd4 {[%clk 01:27:31]} {[%emt 00:00:45]} 8. cxd4 {[%clk
01:26:16]} {[%emt 00:00:06]} Bb6 {[%clk 01:26:43]} {[%emt 00:01:17]} 9. Nc3
{[%clk 01:25:43]} {[%emt 00:01:03]} d6 {[%clk 01:26:07]} {[%emt 00:01:07]} 10.
h3 {[%clk 01:24:34]} {[%emt 00:01:39]} Re8 {[%clk 01:24:33]} {[%emt 00:02:02]}
11. Re1 {[%clk 01:24:08]} {[%emt 00:00:57]} Ba5 {[%clk 01:22:11]} {[%emt
00:02:52]} 12. Qc2 {[%clk 01:17:41]} {[%emt 00:06:57]} b6 {[%clk 01:14:04]}
{[%emt 00:08:38]} 13. Bd2 {[%clk 01:00:32]} {[%emt 00:17:39]} Bb7 {[%clk
01:09:24]} {[%emt 00:05:10]} 14. e5 {[%clk 00:54:09]} {[%emt 00:06:53]} dxe5
{[%clk 00:57:03]} {[%emt 00:12:51]} 15. dxe5 {[%clk 00:52:29]} {[%emt
00:02:11]} Nd7 {[%clk 00:54:56]} {[%emt 00:02:36]} 16. e6 {[%clk 00:50:06]}
{[%emt 00:02:52]} fxe6 {[%clk 00:53:41]} {[%emt 00:01:46]} 17. Bxe6+ {[%clk
00:42:44]} {[%emt 00:07:52]} Kh8 {[%clk 00:53:11]} {[%emt 00:01:01]} 18. a3
{[%clk 00:33:06]} {[%emt 00:10:07]} Bxc3 {[%clk 00:50:53]} {[%emt 00:02:48]} 19.
Bxc3 {[%clk 00:33:24]} {[%emt 00:00:13]} Nc5 {[%clk 00:50:07]} {[%emt
00:01:14]} 20. Qg6 {[%emt 00:05:09]} Re7 {[%clk 00:44:38]} {[%emt 00:06:01]} 21.
Qxh6# {[%clk 00:28:48]} {[%emt 00:00:25]} 1-0

[Event "Swedish U16 Team Championship 2019 - Final"]
[Site "Molnlycke Kulturhus, Biblioteksgatan 2, Molnlycke, Sweden"]
[Date "2019.08.17"]
[Round "4.5"]
[White "Hjernestam, John"]
[Black "Backlund, Elias"]
[Result "0-1"]
[TimeControl "90 minutes + 30 seconds per move from move one."]
[WhiteElo "1376"]
[BlackElo "1603"]

1. d4 {[%clk 01:30:58]} {[%emt 00:00:01]} Nf6 {[%clk 01:30:51]} {[%emt
00:00:10]} 2. Bf4 {[%clk 01:31:19]} {[%emt 00:00:08]} e6 {[%clk 01:31:12]}
{[%emt 00:00:10]} 3. e3 {[%clk 01:31:40]} {[%emt 00:00:08]} d5 {[%clk
01:31:27]} {[%emt 00:00:17]} 4. c3 {[%clk 01:32:02]} {[%emt 00:00:07]} Bd6
{[%clk 01:31:53]} {[%emt 00:00:04]} 5. Bg3 {[%clk 01:32:15]} {[%emt 00:00:16]}
O-O {[%clk 01:32:00]} {[%emt 00:00:24]} 6. Nf3 {[%clk 01:32:24]} {[%emt
00:00:20]} c5 {[%clk 01:31:56]} {[%emt 00:00:34]} 7. Nbd2 {[%clk 01:31:18]}
{[%emt 00:01:36]} Nc6 {[%clk 01:31:51]} {[%emt 00:00:36]} 8. Bd3 {[%clk
01:29:53]} {[%emt 00:01:54]} b6 {[%clk 01:31:30]} {[%emt 00:00:51]} 9. e4
{[%clk 01:29:52]} {[%emt 00:00:30]} dxe4 {[%clk 01:30:17]} {[%emt 00:01:44]} 10.
Nxe4 {[%clk 01:30:04]} {[%emt 00:00:18]} Nxe4 {[%clk 01:30:17]} {[%emt
00:00:30]} 11. Bxe4 {[%clk 01:30:24]} {[%emt 00:00:08]} Bb7 {[%clk 01:30:07]}
{[%emt 00:00:40]} 12. dxc5 {[%clk 01:22:51]} {[%emt 00:08:03]} Bxc5 {[%clk
01:29:24]} {[%emt 00:01:13]} 13. O-O {[%clk 01:22:55]} {[%emt 00:00:26]} f5
{[%clk 01:24:15]} {[%emt 00:05:40]} 14. Bc2 {[%clk 01:21:12]} {[%emt 00:02:13]}
Qf6 {[%clk 01:23:09]} {[%emt 00:01:34]} 15. Bb3 {[%clk 01:18:54]} {[%emt
00:02:49]} Rae8 {[%clk 01:19:22]} {[%emt 00:04:17]} 16. Bh4 {[%clk 01:16:37]}
{[%emt 00:02:48]} Qg6 {[%clk 01:18:08]} {[%emt 00:01:43]} 17. Re1 {[%clk
01:04:38]} {[%emt 00:12:30]} Kh8 {[%clk 01:11:15]} {[%emt 00:07:24]} 18. Qd3
{[%clk 00:37:43]} {[%emt 00:27:24]} e5 {[%clk 01:08:24]} {[%emt 00:03:21]} 19.
Qd7 {[%clk 00:27:52]} {[%emt 00:10:20]} Na5 {[%clk 01:04:46]} {[%emt 00:04:08]}
20. Bd1 {[%clk 00:27:44]} {[%emt 00:00:37]} e4 {[%clk 01:02:42]} {[%emt
00:02:35]} 21. Ng5 {[%clk 00:24:00]} {[%emt 00:04:14]} Bc6 {[%clk 00:54:07]}
{[%emt 00:09:05]} 22. Qd2 {[%clk 00:20:53]} {[%emt 00:03:35]} h6 {[%clk
00:53:20]} {[%emt 00:01:18]} 23. Nh3 {[%clk 00:20:55]} {[%emt 00:00:29]} e3
{[%clk 00:51:44]} {[%emt 00:02:07]} 24. Nf4 {[%clk 00:19:35]} {[%emt 00:01:49]}
Qxg2+ {[%clk 00:46:02]} {[%emt 00:06:12]} 25. Nxg2 {[%clk 00:19:40]} {[%emt
00:00:25]} exd2 {[%clk 00:46:27]} {[%emt 00:00:05]} 26. Rf1 {[%clk 00:14:08]}
{[%emt 00:06:01]} g5 {[%clk 00:45:56]} {[%emt 00:01:01]} 27. b4 {[%clk
00:13:34]} {[%emt 00:01:05]} gxh4 {[%clk 00:45:27]} {[%emt 00:01:00]} 28. bxc5
{[%clk 00:13:09]} {[%emt 00:00:55]} h3 {[%clk 00:45:13]} {[%emt 00:00:43]} 29.
Nf4 {[%clk 00:12:54]} {[%emt 00:00:45]} Rg8+ {[%clk 00:45:27]} {[%emt
00:00:15]} 30. Ng2 {[%clk 00:12:03]} {[%emt 00:01:22]} Rxg2+ {[%clk 00:45:41]}
{[%emt 00:00:16]} 31. Kh1 {[%clk 00:12:23]} {[%emt 00:00:08]} Rxf2+ {[%clk
00:45:58]} {[%emt 00:00:15]} 32. Kg1 {[%clk 00:12:29]} {[%emt 00:00:22]} Rg2+
{[%clk 00:46:12]} {[%emt 00:00:17]} 33. Kh1 {[%clk 00:12:46]} {[%emt 00:00:14]}
Rg3+ {[%emt 00:00:16]} 0-1

[Event "Swedish U16 Team Championship 2019 - Final"]
[Site "Molnlycke Kulturhus, Biblioteksgatan 2, Molnlycke, Sweden"]
[Date "2019.08.17"]
[Round "4.6"]
[White "Sandberg, Simon"]
[Black "Storme, Joel"]
[Result "0-1"]
[TimeControl "90 minutes + 30 seconds per move from move one."]
[WhiteElo "1375"]
[BlackElo "1371"]

1. e4 {[%clk 01:30:59]} d5 {[%clk 01:30:46]} {[%emt 00:00:13]} 2. exd5 {[%clk
01:31:22]} {[%emt 00:00:08]} Qxd5 {[%clk 01:31:08]} {[%emt 00:00:07]} 3. Nc3
{[%clk 01:31:48]} {[%emt 00:00:05]} Qa5 {[%clk 01:31:33]} {[%emt 00:00:05]} 4.
Nf3 {[%clk 01:31:37]} {[%emt 00:00:41]} Nf6 {[%clk 01:31:31]} {[%emt 00:00:30]}
5. Bc4 {[%clk 01:31:44]} {[%emt 00:00:24]} Bg4 {[%clk 01:31:51]} {[%emt
00:00:10]} 6. h3 {[%clk 01:31:22]} {[%emt 00:00:52]} Bh5 {[%clk 01:31:52]}
{[%emt 00:00:29]} 7. d3 {[%clk 01:31:37]} {[%emt 00:00:15]} c6 {[%clk
01:31:52]} {[%emt 00:00:30]} 8. Bf4 {[%clk 01:29:58]} {[%emt 00:02:08]} e6
{[%clk 01:29:56]} {[%emt 00:02:26]} 9. O-O {[%clk 01:29:46]} {[%emt 00:00:42]}
Bb4 {[%clk 01:29:30]} {[%emt 00:00:56]} 10. Bd2 {[%clk 01:27:54]} {[%emt
00:02:23]} Qc7 {[%clk 01:28:15]} {[%emt 00:01:44]} 11. Nb5 {[%clk 01:22:08]}
{[%emt 00:06:17]} Qb6 {[%clk 01:23:03]} {[%emt 00:05:42]} 12. Bxb4 {[%clk
01:19:25]} {[%emt 00:03:13]} cxb5 {[%clk 01:23:21]} {[%emt 00:00:12]} 13. Bb3
{[%clk 01:19:41]} {[%emt 00:00:15]} a5 {[%clk 01:23:42]} {[%emt 00:00:09]} 14.
Bd2 {[%clk 01:18:33]} {[%emt 00:01:37]} a4 {[%clk 01:23:38]} {[%emt 00:00:34]}
15. Be3 {[%clk 01:16:38]} {[%emt 00:02:25]} Qc7 {[%clk 01:22:02]} {[%emt
00:02:04]} 16. Bxe6 {[%clk 01:15:23]} {[%emt 00:01:47]} fxe6 {[%clk 01:21:57]}
{[%emt 00:00:35]} 17. Re1 {[%clk 01:14:58]} {[%emt 00:00:55]} O-O {[%clk
01:18:49]} {[%emt 00:03:38]} 18. Bg5 {[%clk 01:13:28]} {[%emt 00:02:00]} Ra6
{[%clk 01:17:45]} {[%emt 00:01:34]} 19. Qe2 {[%clk 01:10:33]} {[%emt 00:03:25]}
Nbd7 {[%clk 01:13:27]} {[%emt 00:04:48]} 20. g4 {[%clk 01:09:43]} {[%emt
00:01:21]} Nxg4 {[%clk 01:13:01]} {[%emt 00:00:56]} 21. Qf1 {[%clk 00:56:38]}
{[%emt 00:13:35]} Nxf2 {[%clk 01:11:15]} {[%emt 00:02:16]} 22. Qxf2 {[%clk
00:56:15]} {[%emt 00:00:53]} Rxf3 {[%clk 01:11:29]} {[%emt 00:00:16]} 23. Qh2
{[%clk 00:56:14]} {[%emt 00:00:31]} Qc5+ {[%clk 01:11:01]} {[%emt 00:00:58]} 24.
Be3 {[%clk 00:55:43]} {[%emt 00:01:02]} Rxe3 {[%clk 01:11:11]} {[%emt
00:00:19]} 25. Qf2 {[%clk 00:56:02]} {[%emt 00:00:11]} Rg3+ {[%clk 01:11:06]}
{[%emt 00:00:35]} 26. Kf1 {[%clk 00:56:18]} {[%emt 00:00:10]} Rf3 {[%clk
01:11:32]} {[%emt 00:00:09]} 27. Qxf3 {[%clk 00:56:22]} {[%emt 00:00:26]} Bxf3
{[%clk 01:11:54]} {[%emt 00:00:07]} 0-1

[Event "Swedish U16 Team Championship 2019 - Final"]
[Site "Molnlycke Kulturhus, Biblioteksgatan 2, Molnlycke, Sweden"]
[Date "2019.08.17"]
[Round "4.7"]
[White "Rasmusson, Max"]
[Black "Ytterberg, Felix"]
[Result "1/2-1/2"]
[TimeControl "90 minutes + 30 seconds per move from move one."]
[WhiteElo "1624"]
[BlackElo "2033"]

1. g3 {[%clk 01:30:57]} {[%emt 00:00:02]} Nf6 {[%clk 01:30:48]} {[%emt
00:00:11]} 2. c4 {[%clk 01:31:11]} {[%emt 00:00:19]} g6 {[%clk 01:31:03]}
{[%emt 00:00:14]} 3. Nc3 {[%clk 01:31:22]} {[%emt 00:00:19]} Bg7 {[%clk
01:31:18]} {[%emt 00:00:13]} 4. d3 {[%clk 01:31:19]} {[%emt 00:00:35]} O-O
{[%clk 01:31:34]} {[%emt 00:00:12]} 5. Bg2 {[%clk 01:31:06]} {[%emt 00:00:44]}
c6 {[%clk 01:31:11]} {[%emt 00:00:51]} 6. Nf3 {[%clk 01:29:58]} {[%emt
00:01:40]} d5 {[%clk 01:31:27]} {[%emt 00:00:12]} 7. cxd5 {[%clk 01:30:21]}
{[%emt 00:00:09]} cxd5 {[%clk 01:31:46]} {[%emt 00:00:09]} 8. O-O {[%clk
01:28:54]} {[%emt 00:02:00]} Nc6 {[%clk 01:30:36]} {[%emt 00:01:36]} 9. e4
{[%clk 01:23:40]} {[%emt 00:05:47]} d4 {[%clk 01:25:41]} {[%emt 00:05:23]} 10.
Ne2 {[%clk 01:23:44]} {[%emt 00:00:26]} e5 {[%clk 01:12:22]} {[%emt 00:13:48]}
11. a3 {[%clk 01:15:30]} {[%emt 00:08:47]} a5 {[%clk 01:10:04]} {[%emt
00:02:48]} 12. Nd2 {[%clk 01:07:21]} {[%emt 00:08:38]} Be6 {[%clk 01:09:37]}
{[%emt 00:00:56]} 13. h3 {[%clk 00:50:10]} {[%emt 00:17:43]} Nd7 {[%clk
01:02:05]} {[%emt 00:08:00]} 14. f4 {[%clk 00:42:10]} {[%emt 00:08:31]} f6
{[%clk 01:00:38]} {[%emt 00:01:57]} 15. Nf3 {[%clk 00:41:28]} {[%emt 00:01:12]}
a4 {[%clk 01:00:37]} {[%emt 00:00:30]} 16. fxe5 {[%clk 00:40:54]} {[%emt
00:01:05]} fxe5 {[%clk 01:00:28]} {[%emt 00:00:39]} 17. Bg5 {[%clk 00:39:44]}
{[%emt 00:01:40]} Qb6 {[%clk 01:00:21]} {[%emt 00:00:36]} 18. Qd2 {[%clk
00:38:46]} {[%emt 00:01:30]} Nc5 {[%clk 00:59:41]} {[%emt 00:01:09]} 19. Rab1
{[%clk 00:32:53]} {[%emt 00:06:24]} Nb3 {[%clk 00:59:31]} {[%emt 00:00:39]} 20.
Qd1 {[%clk 00:32:52]} {[%emt 00:00:32]} h6 {[%clk 00:58:59]} {[%emt 00:00:59]}
21. Bc1 {[%clk 00:31:11]} {[%emt 00:02:14]} Nca5 {[%clk 00:56:05]} {[%emt
00:03:22]} 22. Bd2 {[%clk 00:27:33]} {[%emt 00:04:09]} Nc5 {[%clk 00:54:01]}
{[%emt 00:02:34]} 23. Bb4 {[%clk 00:26:33]} {[%emt 00:01:30]} Nab3 {[%clk
00:54:00]} {[%emt 00:00:30]} 24. Nc1 {[%clk 00:23:41]} {[%emt 00:03:23]} Rf7
{[%clk 00:52:39]} {[%emt 00:01:50]} 25. Nxb3 {[%emt 00:00:37]} Nxb3 {[%clk
00:52:44]} {[%emt 00:00:09]} 26. Nd2 {[%clk 00:23:06]} {[%emt 00:01:14]} Rxf1+
{[%clk 00:52:07]} {[%emt 00:01:07]} 27. Bxf1 {[%clk 00:22:48]} {[%emt
00:00:48]} Bf8 {[%clk 00:51:40]} {[%emt 00:00:56]} 28. Bxf8 {[%clk 00:22:25]}
{[%emt 00:00:54]} Rxf8 {[%clk 00:51:48]} {[%emt 00:00:21]} 29. Nxb3 {[%clk
00:22:53]} {[%emt 00:00:03]} Bxb3 {[%clk 00:51:59]} {[%emt 00:00:18]} 30. Qd2
{[%clk 00:23:01]} {[%emt 00:00:24]} Kg7 {[%clk 00:51:02]} {[%emt 00:01:25]} 31.
Rc1 {[%clk 00:22:04]} {[%emt 00:01:28]} Rf7 {[%clk 00:50:59]} {[%emt 00:00:32]}
32. h4 {[%clk 00:19:10]} {[%emt 00:03:25]} Qf6 {[%clk 00:48:58]} {[%emt
00:02:21]} 33. Bg2 {[%clk 00:19:13]} {[%emt 00:00:37]} Qd6 {[%clk 00:46:47]}
{[%emt 00:02:40]} 34. Qa5 {[%clk 00:13:54]} {[%emt 00:05:51]} b6 {[%clk
00:42:16]} {[%emt 00:05:01]} 35. Qd2 {[%clk 00:14:18]} {[%emt 00:00:06]} Be6
{[%clk 00:42:15]} {[%emt 00:00:30]} 36. Rc2 {[%clk 00:12:32]} {[%emt 00:02:16]}
Bg4 {[%clk 00:42:10]} {[%emt 00:00:34]} 37. Qc1 {[%clk 00:12:30]} {[%emt
00:00:34]} Qf6 {[%clk 00:42:07]} {[%emt 00:00:32]} 38. Rc7 {[%clk 00:10:04]}
{[%emt 00:02:56]} Qf2+ {[%clk 00:41:49]} {[%emt 00:00:48]} 39. Kh2 {[%clk
00:10:32]} {[%emt 00:00:01]} h5 {[%clk 00:37:55]} {[%emt 00:04:23]} 40. Qc4
{[%clk 00:07:00]} {[%emt 00:04:03]} Be2 {[%clk 00:36:44]} {[%emt 00:01:40]} 41.
Rxf7+ {[%clk 00:06:59]} {[%emt 00:00:32]} Qxf7 {[%clk 00:37:01]} {[%emt
00:00:12]} 42. Qc2 {[%clk 00:07:22]} {[%emt 00:00:07]} Bf1 {[%clk 00:35:13]}
{[%emt 00:02:18]} 43. Bxf1 {[%clk 00:06:11]} {[%emt 00:01:41]} Qxf1 {[%clk
00:35:32]} {[%emt 00:00:12]} 44. Qc7+ {[%clk 00:06:26]} {[%emt 00:00:15]} Kg8
{[%clk 00:34:34]} {[%emt 00:01:27]} 45. Qxe5 {[%clk 00:05:49]} {[%emt
00:01:07]} Qf2+ {[%clk 00:34:12]} {[%emt 00:00:52]} 46. Kh1 {[%clk 00:04:36]}
{[%emt 00:01:44]} Qe1+ {[%clk 00:34:05]} {[%emt 00:00:36]} 47. Kh2 {[%clk
00:04:51]} {[%emt 00:00:16]} Qe2+ {[%clk 00:34:25]} {[%emt 00:00:10]} 48. Kh1
{[%clk 00:05:05]} {[%emt 00:00:15]} Qd1+ {[%clk 00:34:48]} {[%emt 00:00:07]} 49.
Kh2 {[%clk 00:05:26]} {[%emt 00:00:09]} Qc2+ {[%clk 00:35:00]} {[%emt
00:00:18]} 50. Kh1 {[%clk 00:05:45]} {[%emt 00:00:11]} Qc1+ {[%clk 00:34:50]}
{[%emt 00:00:40]} 51. Kh2 {[%clk 00:06:09]} {[%emt 00:00:05]} Qxb2+ {[%clk
00:34:39]} {[%emt 00:00:42]} 52. Kh3 {[%clk 00:06:14]} {[%emt 00:00:25]} Qxa3
{[%clk 00:34:08]} {[%emt 00:01:00]} 53. Qe6+ {[%clk 00:06:03]} {[%emt
00:00:41]} Kg7 {[%clk 00:33:55]} {[%emt 00:00:43]} 54. Qe5+ {[%clk 00:05:52]}
{[%emt 00:00:41]} Kf7 {[%clk 00:33:56]} {[%emt 00:00:29]} 55. Qd5+ {[%clk
00:06:04]} {[%emt 00:00:19]} Ke7 {[%clk 00:32:53]} {[%emt 00:01:21]} 56. Qb7+
{[%clk 00:06:00]} {[%emt 00:00:45]} Ke8 {[%clk 00:32:36]} {[%emt 00:00:47]} 57.
Qc6+ {[%clk 00:05:27]} {[%emt 00:01:04]} Kf7 {[%clk 00:32:11]} {[%emt
00:00:47]} 58. Qd5+ {[%clk 00:05:53]} {[%emt 00:00:11]} Kf8 {[%clk 00:32:18]}
{[%emt 00:00:22]} 59. Qd8+ {[%clk 00:06:11]} {[%emt 00:00:12]} Kf7 {[%clk
00:32:35]} {[%emt 00:00:14]} 60. Qd5+ {[%clk 00:06:33]} {[%emt 00:00:08]} Ke7
{[%clk 00:32:35]} {[%emt 00:00:29]} 61. Qb7+ {[%clk 00:06:49]} {[%emt
00:00:14]} Ke6 {[%clk 00:28:43]} {[%emt 00:04:21]} 62. Qd5+ {[%clk 00:07:07]}
{[%emt 00:00:15]} Ke7 {[%clk 00:28:22]} {[%emt 00:00:49]} 63. Qb7+ {[%clk
00:07:31]} {[%emt 00:00:07]} Kd8 {[%clk 00:27:21]} {[%emt 00:01:32]} 64. Qxb6+
{[%clk 00:05:29]} {[%emt 00:02:33]} Kc8 {[%clk 00:27:31]} {[%emt 00:00:19]} 65.
Qc6+ {[%clk 00:05:41]} {[%emt 00:00:18]} Kb8 {[%clk 00:27:24]} {[%emt
00:00:35]} 66. Qb6+ {[%clk 00:06:00]} {[%emt 00:00:13]} Kc8 {[%clk 00:27:36]}
{[%emt 00:00:18]} 67. Qc6+ {[%clk 00:06:24]} {[%emt 00:00:06]} Kd8 {[%clk
00:27:52]} {[%emt 00:00:15]} 68. Qb6+ {[%clk 00:06:14]} {[%emt 00:00:40]} Ke7
{[%clk 00:27:52]} {[%emt 00:00:29]} 69. e5 {[%clk 00:04:44]} {[%emt 00:02:00]}
Qxd3 {[%clk 00:27:49]} {[%emt 00:00:32]} 70. Qd6+ {[%clk 00:04:35]} {[%emt
00:00:39]} Ke8 {[%clk 00:28:09]} {[%emt 00:00:10]} 71. Qc6+ {[%clk 00:04:45]}
{[%emt 00:00:21]} Kd8 {[%clk 00:28:29]} {[%emt 00:00:10]} 72. e6 {[%clk
00:03:56]} {[%emt 00:01:19]} Qf1+ {[%clk 00:28:14]} {[%emt 00:00:44]} 73. Kh2
{[%clk 00:04:15]} {[%emt 00:00:11]} Qf2+ {[%clk 00:28:25]} {[%emt 00:00:19]} 74.
Kh3 {[%clk 00:04:36]} {[%emt 00:00:08]} Qf1+ {[%clk 00:27:54]} {[%emt
00:01:02]} 75. Kh2 {[%clk 00:05:01]} {[%emt 00:00:06]} Qe2+ {[%clk 00:27:35]}
{[%emt 00:00:49]} 76. Kh3 {[%clk 00:04:58]} {[%emt 00:00:33]} Qg4+ {[%clk
00:27:34]} {[%emt 00:00:31]} 77. Kh2 {[%clk 00:05:27]} {[%emt 00:00:01]} Qe2+
{[%clk 00:25:12]} {[%emt 00:02:53]} 1/2-1/2

[Event "Swedish U16 Team Championship 2019 - Final"]
[Site "Molnlycke Kulturhus, Biblioteksgatan 2, Molnlycke, Sweden"]
[Date "2019.08.17"]
[Round "4.8"]
[White "Ivarsson, Sebastian"]
[Black "Holmquist, Oliver 2006"]
[Result "1-0"]
[TimeControl "90 minutes + 30 seconds per move from move one."]
[WhiteElo "2001"]
[BlackElo "1137"]

1. d4 {[%clk 01:30:58]} {[%emt 00:00:02]} d5 {[%clk 01:30:54]} {[%emt
00:00:06]} 2. c4 {[%clk 01:31:20]} {[%emt 00:00:08]} dxc4 {[%clk 01:31:15]}
{[%emt 00:00:09]} 3. Nf3 {[%clk 01:31:38]} {[%emt 00:00:12]} Bf5 {[%clk
01:31:23]} {[%emt 00:00:22]} 4. e3 {[%clk 01:31:56]} {[%emt 00:00:12]} Nf6
{[%clk 01:30:58]} {[%emt 00:00:54]} 5. Bxc4 {[%clk 01:32:15]} {[%emt 00:00:11]}
e6 {[%clk 01:30:43]} {[%emt 00:00:46]} 6. O-O {[%clk 01:31:57]} {[%emt
00:00:46]} Bd6 {[%clk 01:30:07]} {[%emt 00:01:08]} 7. Nc3 {[%clk 01:31:52]}
{[%emt 00:00:34]} a6 {[%clk 01:29:22]} {[%emt 00:01:15]} 8. Qe2 {[%clk
01:30:09]} {[%emt 00:02:12]} Bg4 {[%clk 01:26:32]} {[%emt 00:03:21]} 9. h3
{[%clk 01:27:52]} {[%emt 00:02:48]} Bh5 {[%clk 01:26:47]} {[%emt 00:00:16]} 10.
e4 {[%clk 01:27:25]} {[%emt 00:00:55]} Bb4 {[%clk 01:19:59]} {[%emt 00:07:18]}
11. Rd1 {[%clk 01:26:03]} {[%emt 00:01:52]} Nbd7 {[%clk 01:14:08]} {[%emt
00:06:21]} 12. e5 {[%clk 01:17:25]} {[%emt 00:09:07]} Nd5 {[%clk 01:11:59]}
{[%emt 00:02:39]} 13. Nxd5 {[%clk 01:16:05]} {[%emt 00:01:49]} exd5 {[%clk
01:11:51]} {[%emt 00:00:39]} 14. Bxd5 {[%clk 01:16:09]} {[%emt 00:00:26]} c6
{[%clk 01:10:54]} {[%emt 00:01:28]} 15. Bb3 {[%clk 01:13:03]} {[%emt 00:03:35]}
O-O {[%clk 01:10:07]} {[%emt 00:01:18]} 16. d5 {[%clk 01:04:27]} {[%emt
00:09:06]} Qc7 {[%clk 01:06:24]} {[%emt 00:04:12]} 17. Bf4 {[%clk 00:55:54]}
{[%emt 00:09:03]} Rfe8 {[%clk 01:02:18]} {[%emt 00:04:36]} 18. g4 {[%clk
00:55:06]} {[%emt 00:01:18]} Bg6 {[%clk 01:02:15]} {[%emt 00:00:34]} 19. Qc4
{[%clk 00:53:54]} {[%emt 00:01:38]} Qb6 {[%clk 00:55:17]} {[%emt 00:07:31]} 20.
dxc6 {[%clk 00:51:25]} {[%emt 00:03:00]} Nf8 {[%clk 00:53:51]} {[%emt
00:01:56]} 21. Nh4 {[%clk 00:47:04]} {[%emt 00:04:49]} Ne6 {[%clk 00:48:20]}
{[%emt 00:06:02]} 22. Nxg6 {[%clk 00:46:23]} {[%emt 00:01:12]} hxg6 {[%emt
00:00:13]} 23. Be3 {[%clk 00:43:42]} {[%emt 00:03:08]} Qb5 {[%clk 00:48:08]}
{[%emt 00:01:01]} 24. Qxb5 {[%clk 00:41:44]} {[%emt 00:02:28]} axb5 {[%clk
00:48:27]} {[%emt 00:00:12]} 25. cxb7 {[%clk 00:41:32]} {[%emt 00:00:41]} Rab8
{[%clk 00:48:41]} {[%emt 00:00:17]} 26. Rd7 {[%clk 00:41:30]} {[%emt 00:00:31]}
Re7 {[%clk 00:47:22]} {[%emt 00:01:50]} 27. Bxe6 {[%clk 00:41:10]} {[%emt
00:00:50]} fxe6 {[%clk 00:47:18]} {[%emt 00:00:35]} 28. Rad1 {[%clk 00:39:46]}
{[%emt 00:01:53]} Kf7 {[%clk 00:47:14]} {[%emt 00:00:35]} 29. Bg5 {[%clk
00:39:18]} {[%emt 00:00:57]} Rxd7 {[%clk 00:45:45]} {[%emt 00:02:00]} 30. Rxd7+
{[%clk 00:39:16]} {[%emt 00:00:31]} Kg8 {[%clk 00:45:33]} {[%emt 00:00:42]} 31.
Rd8+ {[%clk 00:39:09]} {[%emt 00:00:36]} Rxd8 {[%clk 00:45:41]} {[%emt
00:00:23]} 32. Bxd8 {[%clk 00:39:30]} {[%emt 00:00:09]} 1-0